{"text_format":"1","workbook":"xlsx","n_sheets":1,"sheets":["KALKULAČKA"],"not_rendered":{"charts":0,"images":4,"macros":1,"external_links":0,"defined_names":1,"comments":0,"pivot_tables":0},"unopened":[],"bounds":{"document_bytes":16777216,"sheet_cells":100000,"rows_first":2000,"rows_last":500,"rows_between":2000,"halvings":0,"cell_chars":16384,"cell_head_chars":4096},"cells_cut":0,"cells_raw":0,"read":"whole","date_system":"1900"}

{"sheet":"KALKULAČKA","index":0,"n_rows":31,"n_cols":15,"rows_kept":31,"cut":false,"hidden":false,"merged":[[5,2,5,5],[5,6,5,7],[6,2,6,5],[6,6,6,7],[6,8,6,13],[3,2,3,5],[3,11,3,13],[4,2,4,5],[4,6,4,13],[3,6,3,9],[7,2,7,13],[8,4,8,7],[8,8,8,13],[9,0,11,0],[9,4,9,7],[9,8,9,13],[10,4,10,7],[10,8,10,13],[11,4,11,7],[11,8,11,13],[0,0,7,0],[0,2,0,13],[1,2,1,5],[1,6,1,13],[2,2,2,5],[2,6,2,13],[12,4,12,7],[12,8,12,13],[13,4,13,7],[13,8,13,13],[14,4,14,7],[14,8,14,13],[15,4,15,7],[15,8,15,13],[16,4,16,7],[16,8,16,13],[17,4,17,7],[17,8,17,13],[18,4,18,7],[18,8,18,13],[19,4,19,7],[19,8,19,13],[20,4,20,7],[20,8,20,13],[21,4,21,7],[21,8,21,13],[22,4,22,7],[22,8,22,13],[23,4,23,7],[23,8,23,13],[24,4,24,7],[24,8,24,13],[25,4,25,7],[25,8,25,13],[26,4,26,7],[26,8,26,13],[27,4,27,7],[27,8,27,13],[28,4,28,7],[28,8,28,13],[30,4,30,7],[30,8,30,13],[29,4,29,7],[29,8,29,13]]}
[{"$f":"QRCode(O1)","v":""},null,"KALKULAČKA  2024",null,null,null,null,null,null,null,null,null,null,null,{"$f":"\"SPD*1.0*ACC:CZ4920100000002700686399*AM:\"&G5&\"*CC:CZK*MSG:\"&G2&\"*X-VS:\"&G3&\"*X-SS:\"&SUBSTITUTE(I7,\" \",\"\")","v":"SPD*1.0*ACC:CZ4920100000002700686399*AM:0*CC:CZK*MSG:*X-VS:*X-SS:900000"}]
[null,null,"Jméno a Příjmení"]
[null,null,"variabilní symbol (kód z legitimace)"]
[null,null,"číslo bankovního účtu",null,null,null,2700686399,null,null,null,"/",2010]
[null,null,"CELKEM UHRADIT: ",null,null,null,{"$f":"SUM(I9:I31)","v":0}]
[null,null,"kód platby:",null,null,null,null,null,9,{"$f":"IFERROR(VLOOKUP(TRUE,C9:D11,2,0),0)","v":0},{"$f":"IFERROR(VLOOKUP(TRUE,C12:D14,2,0),0)","v":0},{"$f":"IFERROR(VLOOKUP(TRUE,C15:D21,2,0),0)","v":0},{"$f":"IFERROR(VLOOKUP(TRUE,C22:D28,2,0),0)","v":0},{"$f":"IFERROR(VLOOKUP(TRUE,C29:D31,2,0),0)","v":0}]
[null,null,"specifický symbol:",null,null,null,null,null,{"$f":"I6 & \" \" & J6 & \" \" & K6 & \" \" & L6 & \" \" & M6 & \" \" & N6","v":"9 0 0 0 0 0"}]
[null,null,"ÚČEL PLATBY / POLOŽKU ZVOLÍTE KLIKNUTÍM DO ŽLUTÉHO SLOUPCE                  "]
["QR Platba",null,false,1,"ČLENSKÉ PŘÍSPĚVKY DOSPĚLÍ",null,null,null,{"$f":"IF(C9=TRUE,O9,\"\")","v":""},null,null,null,null,null,700]
[null,null,false,2,"ČLENSKÉ PŘÍSPĚVKY MLÁDĚŽ 16-18 LET",null,null,null,"",null,null,null,null,null,300]
[null,null,false,3,"ČLENSKÉ PŘÍSPĚVKY DĚTI DO 15-TI LET",null,null,null,"",null,null,null,null,null,150]
[null,null,false,1,"BRIGÁDY DOSPĚLÍ",null,null,null,"",null,null,null,null,null,1000]
[null,null,false,2,"BRIGÁDY MLÁDĚŽ 16-18 LET",null,null,null,"",null,null,null,null,null,500]
[null,null,false,3,"BRIGÁDY ZTP 1. A 2. STUPEŇ",null,null,null,"",null,null,null,null,null,200]
[null,null,false,1,"POVOLENKA MP KRAJSKÁ DOSPĚLÍ",null,null,null,"",null,null,null,null,null,2200]
[null,null,false,2,"POVOLENKA MP KRAJSKÁ 16-18 LET",null,null,null,"",null,null,null,null,null,1100]
[null,null,false,3,"POVOLENKA MP KRAJSKÁ DO 15-TI A ZTP/P",null,null,null,"",null,null,null,null,null,600]
[null,null,false,4,"POVOLENKA MP CELOSVAZOVÁ DOSPĚLÍ",null,null,null,"",null,null,null,null,null,3150]
[null,null,false,5,"POVOLENKA MP CELOSVAZOVÁ 16-18 LET A ZTP",null,null,null,"",null,null,null,null,null,1500]
[null,null,false,6,"POVOLENKA MP CELOSVAZOVÁ DO 15-TI",null,null,null,"",null,null,null,null,null,850]
[null,null,false,7,"SUPERPOVOLENKA (ČRS+MRS) MP",null,null,null,"",null,null,null,null,null,4500]
[null,null,false,1,"POVOLENKA P KRAJSKÁ DOSPĚLÍ",null,null,null,"",null,null,null,null,null,2200]
[null,null,false,2,"POVOLENKA P KRAJSKÁ 16-18 LET",null,null,null,"",null,null,null,null,null,1100]
[null,null,false,3,"POVOLENKA P KRAJSKÁ DO 15-TI A ZTP/P",null,null,null,"",null,null,null,null,null,600]
[null,null,false,4,"POVOLENKA P CELOSVAZOVÁ DOSPĚLÍ",null,null,null,"",null,null,null,null,null,3350]
[null,null,false,5,"POVOLENKA P CELOSVAZOVÁ 16-18 LET A ZTP",null,null,null,"",null,null,null,null,null,1550]
[null,null,false,6,"POVOLENKA P CELOSVAZOVÁ DO 15-TI",null,null,null,"",null,null,null,null,null,900]
[null,null,false,7,"SUPERPOVOLENKA (ČRS+MRS) P",null,null,null,"",null,null,null,null,null,4750]
[null,null,false,1,"ZÁPISNÉ",null,null,null,"",null,null,null,null,null,200]
[null,null,false,2,"POZDNÍ VRÁCENÍ POVOLENKY",null,null,null,{"$f":"IF(C30=TRUE,O30,\"\")","v":""},null,null,null,null,null,100]
[null,null,false,3,"MIMOŘÁDNÝ VÝDEJ",null,null,null,"",null,null,null,null,null,200]